lending/lending_fUSD_20250121
["ID","MTS","AMOUNT","RATE_DAILY","PERIOD"]
[349818801,1737450655121,-1146.462683,0.00021095,2]
[349818802,1737450655130,-537.93,0.00021095,2]
[349818803,1737450655139,-1146.462683,0.00021095,2]
[349818804,1737450655149,-237.806279,0.00021095,2]
[349818805,1737450655159,-237.806279,0.00021095,2]
[349818806,1737450655168,-500.0,0.00021095,2]
[349818807,1737450655177,-557.12,0.00021095,2]
[349818808,1737450655187,-805.94,0.00021095,2]
[349818809,1737450655196,-837.36,0.00021095,2]
[349818810,1737450655206,-500.0,0.00021095,2]
[349818811,1737450655216,-500.0,0.00021095,2]
[349818812,1737450655225,-500.0,0.00021095,2]
[349818813,1737450655235,-1207.54,0.00021095,2]
[349818814,1737450655244,-500.0,0.00021095,2]
[349818815,1737450655253,-500.0,0.00021095,2]
[349818816,1737450655263,-1050.36,0.00021095,2]
[349818817,1737450655272,-728.95,0.00021095,2]
[349818818,1737450655281,-654.59,0.00021095,2]
[349818819,1737450655291,-151.0,0.00021095,2]
[349818820,1737450655301,-1201.91,0.00021095,2]
[349818821,1737450655311,-581.27,0.00021095,2]
[349818822,1737450655323,-500.0,0.00021095,2]
[349818823,1737450655333,-151.0,0.00021095,2]
[349818824,1737450655342,-1041.36,0.00021095,2]
[349818825,1737450655352,-821.41,0.00021095,2]
[349818826,1737450655361,-500.0,0.00021095,2]
[349818827,1737450655370,-151.0,0.00021095,2]
[349818828,1737450655380,-626.41,0.00021095,2]
[349818829,1737450655389,-153.14306,0.00021095,2]
[349818830,1737450655398,-599.33,0.00021095,2]
[349818831,1737450655407,-500.0,0.00021095,2]
[349818832,1737450655416,-795.91,0.00021095,2]
[349818833,1737450655425,-1676.17,0.00021095,2]
[349818834,1737450655434,-537.99,0.00021095,2]
[349818835,1737450655444,-151.0,0.00021095,2]
[349818836,1737450655453,-1571.69,0.00021095,2]
[349818837,1737450655462,-1491.21,0.00021095,2]
[349818838,1737450655471,-1067.25,0.00021095,2]
[349818839,1737450655482,-1814.55,0.00021095,2]
[349818840,1737450655491,-151.0,0.00021095,2]
[349818841,1737450655501,-573.56,0.00021095,2]
[349818842,1737450655511,-182.506579,0.00021095,2]
[349818843,1737450655520,-784.8,0.00021095,2]
[349818844,1737450655529,-500.0,0.00021095,2]
[349818845,1737450655539,-2494.89,0.00021095,2]
[349818846,1737450655549,-182.506579,0.00021095,2]
[349818847,1737450655558,-502.38,0.00021095,2]
[349818848,1737450655571,-500.0,0.00021095,2]
[349818849,1737450655580,-151.0,0.00021095,2]
[349818850,1737450655589,-695.98,0.00021095,2]
[349818851,1737450655599,-500.0,0.00021095,2]
[349818852,1737450655609,-198.015312,0.00021095,2]
[349818853,1737450655621,-1436.11,0.00021095,2]
[349818854,1737450655631,-824.62,0.00021095,2]
[349818855,1737450655641,-500.0,0.00021095,2]
[349818856,1737450655650,-764.64,0.00021095,2]
[349818857,1737450655659,-500.0,0.00021095,2]
[349818858,1737450655668,-500.0,0.00021095,2]
[349818859,1737450655678,-500.0,0.00021095,2]
[349818860,1737450655688,-1470.78,0.00021095,2]
[349818861,1737450655697,-1333.1,0.00021095,2]
[349818862,1737450655707,-179.96857332,0.00021095,2]
[349818863,1737450655716,-1291.48,0.00021095,2]
[349818864,1737450655725,-500.0,0.00021095,2]
[349818865,1737450655734,-500.0,0.00021095,2]
[349818866,1737450655744,-945.45,0.00021095,2]
[349818867,1737450655753,-668.66,0.00021095,2]
[349818868,1737450655763,-500.0,0.00021095,2]
[349818869,1737450655772,-1457.67,0.00021095,2]
[349818870,1737450655782,-500.0,0.00021095,2]
[349818871,1737450655791,-1553.35,0.00021095,2]
[349818872,1737450655801,-203.82937226,0.0002115,2]
[349818873,1737450655810,-164.56402223,0.00021159,2]
[349818874,1737450655821,-210.0,0.0002117,2]
[349818875,1737450655830,-298.01,0.00021178,2]
[349818876,1737450655839,-60000.0,0.000212,3]
[349818877,1737450655849,-53837.31152761,0.00021222,3]
[349818878,1737450655858,-537.04,0.00021232,2]
[349818879,1737450655867,-203.82937226,0.00021275,2]
[349818880,1737450655877,-361.42500515,0.00021369,2]
[349818881,1737450655886,-888.22,0.00021369,2]
[349818882,1737450655895,-537.04,0.00021369,2]
[349818883,1737450655904,-500.0,0.00021369,2]
[349818884,1737450655913,-746.9,0.00021369,2]
[349818885,1737450655922,-528.52,0.00021369,2]
[349818886,1737450655931,-1111.59,0.00021369,2]
[349818887,1737450655940,-500.0,0.00021369,2]
[349818888,1737450655949,-500.0,0.00021369,2]
[349818889,1737450655958,-500.0,0.00021369,2]
[349818890,1737450655968,-500.0,0.00021369,2]
[349818891,1737450655977,-500.0,0.00021369,2]
[349818892,1737450655986,-500.0,0.00021369,2]
[349818893,1737450655996,-500.0,0.00021369,2]
[349818894,1737450656006,-12658.58,0.00021369,2]
[349818895,1737450656015,-500.0,0.00021369,2]
[349818896,1737450656024,-597.8676774,0.00021369,2]
[349818897,1737450656033,-996.22,0.00021369,2]
[349818898,1737450656048,-1636.09,0.00021369,2]
[349818899,1737450656057,-622.86,0.00021369,2]
[349818900,1737450656067,-500.0,0.00021369,2]
[349818901,1737450656076,-517.41,0.00021369,2]
[349818902,1737450656086,-775.51,0.00021369,2]
[349818903,1737450656096,-1139.84,0.00021369,2]
[349818904,1737450656105,-500.0,0.00021369,2]
[349818905,1737450656115,-704.93,0.00021369,2]
[349818906,1737450656124,-1296.17,0.00021369,2]
[349818907,1737450656133,-500.0,0.00021369,2]
[349818908,1737450656142,-573.0,0.00021369,2]
[349818909,1737450656151,-1305.54,0.00021369,2]
[349818910,1737450656160,-500.0,0.00021369,2]
[349818911,1737450656169,-500.0,0.00021369,2]
[349818912,1737450656178,-1608.19,0.00021369,2]
[349818913,1737450656187,-500.0,0.00021369,2]
[349818914,1737450656197,-1609.07,0.00021369,2]
[349818915,1737450656207,-728.03,0.00021369,2]
[349818916,1737450656216,-545.49,0.00021369,2]
[349818917,1737450656228,-500.0,0.00021369,2]
[349818918,1737450656236,-839.08,0.00021369,2]
[349818919,1737450656245,-500.0,0.00021369,2]
[349818920,1737450656254,-500.0,0.00021369,2]
[349818921,1737450656263,-927.49,0.00021369,2]
[349818922,1737450656272,-500.0,0.00021369,2]
[349818923,1737450656281,-500.0,0.00021369,2]
[349818924,1737450656290,-500.0,0.00021369,2]
[349818925,1737450656299,-537.93,0.00021369,2]
[349818926,1737450656309,-500.0,0.00021369,2]
[349818927,1737450656319,-557.12,0.00021369,2]
[349818928,1737450656328,-805.94,0.00021369,2]
[349818929,1737450656337,-837.36,0.00021369,2]
[349818930,1737450656346,-500.0,0.00021369,2]
[349818931,1737450656356,-500.0,0.00021369,2]
[349818932,1737450656365,-500.0,0.00021369,2]
[349818933,1737450656374,-1207.54,0.00021369,2]
[349818934,1737450656384,-500.0,0.00021369,2]
[349818935,1737450656394,-500.0,0.00021369,2]
[349818936,1737450656403,-1050.36,0.00021369,2]
[349818937,1737450656413,-728.95,0.00021369,2]
[349818938,1737450656526,-654.59,0.00021369,2]
[349818939,1737450656538,-1201.91,0.00021369,2]
[349818940,1737450656548,-1041.36,0.00021369,2]
[349818941,1737450656557,-500.0,0.00021369,2]
[349818942,1737450656568,-821.41,0.00021369,2]
[349818943,1737450656577,-500.0,0.00021369,2]
[349818944,1737450656586,-626.41,0.00021369,2]
[349818945,1737450656596,-599.33,0.00021369,2]
[349818946,1737450656606,-500.0,0.00021369,2]
[349818947,1737450656617,-795.91,0.00021369,2]
[349818948,1737450656627,-1676.17,0.00021369,2]
[349818949,1737450656636,-537.99,0.00021369,2]
[349818950,1737450656646,-1571.69,0.00021369,2]
[349818951,1737450656655,-1491.21,0.00021369,2]
[349818952,1737450656665,-1067.25,0.00021369,2]
[349818953,1737450656675,-1814.55,0.00021369,2]
[349818954,1737450656684,-573.56,0.00021369,2]
[349818955,1737450656694,-784.8,0.00021369,2]
[349818956,1737450656703,-496.2,0.00021369,2]
[349818957,1737450656712,-2494.89,0.00021369,2]
[349818958,1737450656721,-502.38,0.00021369,2]
[349818959,1737450656731,-500.0,0.00021369,2]
[349818960,1737450656741,-695.98,0.00021369,2]
[349818961,1737450656750,-500.0,0.00021369,2]
[349818962,1737450656759,-1436.11,0.00021369,2]
[349818963,1737450656768,-824.62,0.00021369,2]
[349818964,1737450656777,-500.0,0.00021369,2]
[349818965,1737450656786,-764.64,0.00021369,2]
[349818966,1737450656796,-500.0,0.00021369,2]
[349818967,1737450656805,-500.0,0.00021369,2]
[349818968,1737450656816,-500.0,0.00021369,2]
[349818969,1737450656825,-290.873762,0.00021369,2]
[349818970,1737450656835,-1470.78,0.00021369,2]
[349818971,1737450656844,-1333.1,0.00021369,2]
[349818972,1737450656853,-1291.48,0.00021369,2]
[349818973,1737450656862,-290.873762,0.00021369,2]
[349818974,1737450656871,-500.0,0.00021369,2]
[349818975,1737450656880,-500.0,0.00021369,2]
[349818976,1737450656889,-945.45,0.00021369,2]
[349818977,1737450656899,-668.66,0.00021369,2]
[349818978,1737450656909,-1457.67,0.00021369,2]
[349818979,1737450656918,-500.0,0.00021369,2]
[349818980,1737450656927,-1553.35,0.00021369,2]
[349818981,1737450656937,-1443.0,0.000214,2]
[349818982,1737450656946,-203.82937226,0.000214,2]
[349818983,1737450656956,-4645.43,0.00021411,7]
[349818984,1737450656966,-4645.43,0.00021411,7]
[349818985,1737450656975,-4645.43,0.00021411,7]
[349818986,1737450656985,-4645.43,0.00021411,7]
[349818987,1737450656995,-1000.0,0.00021412,2]
[349818988,1737450657005,-380.61,0.00021474,2]
[349818989,1737450657015,-210.0,0.000215,2]
[349818990,1737450657025,-1562.0,0.000215,2]
[349818991,1737450657036,-500.0,0.000215,7]
[349818992,1737450657048,-537.04,0.00021506,2]
[349818993,1737450657058,-203.82937226,0.00021525,2]
[349818994,1737450657071,-151.0,0.0002156,2]
[349818995,1737450657081,-214.8,0.0002156,2]
[349818996,1737450657091,-151.0,0.0002156,2]
[349818997,1737450657100,-151.0,0.0002156,2]
[349818998,1737450657112,-151.0,0.0002156,2]
[349818999,1737450657122,-151.0,0.0002156,2]
[349819000,1737450657132,-151.0,0.0002156,2]
[349819001,1737450657141,-151.421503,0.0002156,2]
[349819002,1737450657151,-151.421503,0.0002156,2]
[349819003,1737450657160,-151.0,0.0002156,2]
[349819004,1737450657170,-3720.9851643,0.0002156,2]
[349819005,1737450657179,-151.0,0.0002156,2]
[349819006,1737450657189,-151.0,0.0002156,2]
[349819007,1737450657198,-233.788884,0.0002156,2]
[349819008,1737450657208,-233.788884,0.0002156,2]
[349819009,1737450657218,-151.0,0.0002156,2]
[349819010,1737450657227,-500.0,0.000216,7]
[349819011,1737450657237,-151.0,0.00021643,2]
[349819012,1737450657246,-888.22,0.00021643,2]
[349819013,1737450657255,-537.04,0.00021643,2]
[349819014,1737450657264,-500.0,0.00021643,2]
[349819015,1737450657273,-746.9,0.00021643,2]
[349819016,1737450657283,-1111.59,0.00021643,2]
[349819017,1737450657293,-151.0,0.00021643,2]
[349819018,1737450657303,-152.04,0.00021643,2]
[349819019,1737450657312,-500.0,0.00021643,2]
[349819020,1737450657325,-726.391772,0.00021643,2]
[349819021,1737450657335,-726.391772,0.00021643,2]
[349819022,1737450657344,-151.282294,0.00021643,2]
[349819023,1737450657353,-500.0,0.00021643,2]
[349819024,1737450657363,-500.0,0.00021643,2]
[349819025,1737450657373,-500.0,0.00021643,2]
[349819026,1737450657381,-577.612484,0.00021643,2]
[349819027,1737450657390,-500.0,0.00021643,2]
[349819028,1737450657401,-577.612484,0.00021643,2]
[349819029,1737450657410,-1200.229589,0.00021643,2]
[349819030,1737450657420,-500.0,0.00021643,2]
[349819031,1737450657429,-12658.58,0.00021643,2]
[349819032,1737450657438,-500.0,0.00021643,2]
[349819033,1737450657448,-1200.229589,0.00021643,2]
[349819034,1737450657457,-996.22,0.00021643,2]
[349819035,1737450657466,-151.0,0.00021643,2]
[349819036,1737450657476,-1636.09,0.00021643,2]
[349819037,1737450657485,-622.86,0.00021643,2]
[349819038,1737450657500,-238.677938,0.00021643,2]
[349819039,1737450657518,-500.0,0.00021643,2]
[349819040,1737450657532,-517.41,0.00021643,2]
[349819041,1737450657547,-775.51,0.00021643,2]
[349819042,1737450657563,-1139.84,0.00021643,2]
[349819043,1737450657582,-500.0,0.00021643,2]
[349819044,1737450657598,-704.93,0.00021643,2]
[349819045,1737450657613,-1296.17,0.00021643,2]
[349819046,1737450657628,-500.0,0.00021643,2]
[349819047,1737450657644,-1305.54,0.00021643,2]
[349819048,1737450657663,-500.0,0.00021643,2]
[349819049,1737450657680,-500.0,0.00021643,2]
[349819050,1737450657697,-1608.19,0.00021643,2]
[349819051,1737450657714,-236.67453,0.00021643,2]
[349819052,1737450657732,-151.0,0.00021643,2]
[349819053,1737450657747,-500.0,0.00021643,2]
[349819054,1737450657762,-1609.07,0.00021643,2]
[349819055,1737450657780,-728.03,0.00021643,2]
[349819056,1737450657794,-545.49,0.00021643,2]
[349819057,1737450657807,-500.0,0.00021643,2]
[349819058,1737450657826,-839.08,0.00021643,2]
[349819059,1737450657842,-538.42,0.00021643,2]
[349819060,1737450657857,-1179.906541,0.00021643,2]
[349819061,1737450657870,-199.88883142,0.00021643,2]
[349819062,1737450657883,-927.49,0.00021643,2]
[349819063,1737450657898,-239.48146743,0.00021643,2]
[349819064,1737450657911,-500.0,0.00021643,2]
[349819065,1737450657925,-419.59775216,0.00021643,2]
[349819066,1737450657938,-1146.462683,0.00021643,2]
[349819067,1737450657951,-537.93,0.00021643,2]
[349819068,1737450657968,-1146.462683,0.00021643,2]
[349819069,1737450657983,-237.806279,0.00021643,2]
[349819070,1737450657997,-237.806279,0.00021643,2]
[349819071,1737450658010,-500.0,0.00021643,2]
[349819072,1737450658024,-557.12,0.00021643,2]
[349819073,1737450658046,-805.94,0.00021643,2]
[349819074,1737450658059,-837.36,0.00021643,2]
[349819075,1737450658078,-500.0,0.00021643,2]
[349819076,1737450658092,-500.0,0.00021643,2]
[349819077,1737450658106,-500.0,0.00021643,2]
[349819078,1737450658124,-1207.54,0.00021643,2]
[349819079,1737450658138,-500.0,0.00021643,2]
[349819080,1737450658153,-500.0,0.00021643,2]
[349819081,1737450658167,-1050.36,0.00021643,2]
[349819082,1737450658180,-728.95,0.00021643,2]
[349819083,1737450658193,-654.59,0.00021643,2]
[349819084,1737450658206,-151.0,0.00021643,2]
[349819085,1737450658219,-1201.91,0.00021643,2]
[349819086,1737450658232,-151.0,0.00021643,2]
[349819087,1737450658245,-1041.36,0.00021643,2]
[349819088,1737450658257,-500.0,0.00021643,2]
[349819089,1737450658270,-821.41,0.00021643,2]
[349819090,1737450658282,-500.0,0.00021643,2]
[349819091,1737450658295,-151.0,0.00021643,2]
[349819092,1737450658308,-626.41,0.00021643,2]
[349819093,1737450658322,-599.33,0.00021643,2]
[349819094,1737450658334,-500.0,0.00021643,2]
[349819095,1737450658347,-795.91,0.00021643,2]
[349819096,1737450658359,-1676.17,0.00021643,2]
[349819097,1737450658371,-537.99,0.00021643,2]
[349819098,1737450658384,-151.721084,0.00021643,2]
[349819099,1737450658397,-1571.69,0.00021643,2]
[349819100,1737450658410,-1491.21,0.00021643,2]
[349819101,1737450658422,-1067.25,0.00021643,2]
[349819102,1737450658435,-1814.55,0.00021643,2]
[349819103,1737450658447,-151.0,0.00021643,2]
[349819104,1737450658461,-573.56,0.00021643,2]
[349819105,1737450658473,-182.506579,0.00021643,2]
[349819106,1737450658485,-784.8,0.00021643,2]
[349819107,1737450658497,-182.506579,0.00021643,2]
[349819108,1737450658509,-2494.89,0.00021643,2]
[349819109,1737450658522,-151.0,0.00021643,2]
[349819110,1737450658535,-502.38,0.00021643,2]
[349819111,1737450658547,-500.0,0.00021643,2]
[349819112,1737450658560,-695.98,0.00021643,2]
[349819113,1737450658573,-500.0,0.00021643,2]
[349819114,1737450658585,-1436.11,0.00021643,2]
[349819115,1737450658598,-824.62,0.00021643,2]
[349819116,1737450658611,-500.0,0.00021643,2]
[349819117,1737450658625,-764.64,0.00021643,2]
[349819118,1737450658638,-500.0,0.00021643,2]
[349819119,1737450658651,-500.0,0.00021643,2]
[349819120,1737450658664,-500.0,0.00021643,2]
[349819121,1737450658677,-1470.78,0.00021643,2]
[349819122,1737450658691,-1333.1,0.00021643,2]
[349819123,1737450658704,-1291.48,0.00021643,2]
[349819124,1737450658717,-500.0,0.00021643,2]
[349819125,1737450658731,-500.0,0.00021643,2]
[349819126,1737450658745,-945.45,0.00021643,2]
[349819127,1737450658759,-668.66,0.00021643,2]
[349819128,1737450658773,-1457.67,0.00021643,2]
[349819129,1737450658786,-500.0,0.00021643,2]
[349819130,1737450658800,-1553.35,0.00021643,2]
[349819131,1737450658813,-203.82937226,0.0002165,3]
[349819132,1737450658828,-500.0,0.00021663,7]
[349819133,1737450658839,-500.0,0.00021663,7]
[349819134,1737450658848,-500.0,0.00021663,7]
[349819135,1737450659033,-500.0,0.00021663,7]
[349819136,1737450659071,-500.0,0.00021663,7]
[349819137,1737450659082,-500.0,0.00021663,7]
[349819138,1737450659091,-500.0,0.00021663,7]
[349819139,1737450659100,-500.0,0.00021663,7]
[349819140,1737450659110,-500.0,0.00021663,7]
[349819141,1737450659120,-500.0,0.00021663,7]
[349819142,1737450659131,-500.0,0.00021663,7]
[349819143,1737450659141,-500.0,0.00021663,7]
[349819144,1737450659151,-500.0,0.00021663,7]
[349819145,1737450659161,-500.0,0.00021663,7]
[349819146,1737450659171,-401.27,0.00021663,7]
[349819147,1737450659181,-500.0,0.00021663,7]
[349819148,1737450659191,-500.0,0.00021663,7]
[349819149,1737450659201,-500.0,0.00021663,7]
[349819150,1737450659211,-500.0,0.00021663,7]
[349819151,1737450659220,-500.0,0.00021663,7]
[349819152,1737450659230,-500.0,0.00021663,7]
[349819153,1737450659239,-500.0,0.00021663,7]
[349819154,1737450659250,-500.0,0.00021663,7]
[349819155,1737450659260,-500.0,0.00021663,7]
[349819156,1737450659269,-500.0,0.00021663,7]
[349819157,1737450659279,-500.0,0.00021663,7]
[349819158,1737450659288,-500.0,0.00021663,7]
[349819159,1737450659298,-500.0,0.00021663,7]
[349819160,1737450659308,-500.0,0.00021663,7]
[349819161,1737450659319,-500.0,0.00021663,7]
[349819162,1737450659328,-500.0,0.00021663,7]
[349819163,1737450659337,-500.0,0.00021663,7]
[349819164,1737450659346,-500.0,0.00021663,7]
[349819165,1737450659356,-500.0,0.00021663,7]
[349819166,1737450659365,-500.0,0.00021663,7]
[349819167,1737450659375,-500.0,0.00021663,7]
[349819168,1737450659385,-500.0,0.00021663,7]
[349819169,1737450659395,-500.0,0.00021663,7]
[349819170,1737450659405,-431.04,0.00021663,7]
[349819171,1737450659414,-4645.43,0.00021685,7]
[349819172,1737450659424,-4645.43,0.00021685,7]
[349819173,1737450659433,-500.0,0.000217,7]
[349819174,1737450659442,-2701.28,0.000217,2]
[349819175,1737450659452,-18319.07922461,0.000217,2]
[349819176,1737450659461,-290.873762,0.000217,2]
[349819177,1737450659471,-290.873762,0.000217,2]
[349819178,1737450659481,-1868.45769551,0.00021701,2]
[349819179,1737450659491,-13531.01972449,0.00021727,2]
[349819180,1737450659500,-108791.83985055,0.00021729,2]
[349819181,1737450659511,-5798.33959978,0.00021735,2]
[349819182,1737450659521,-632.57741883,0.00021736,2]
[349819183,1737450659532,-12458.95672727,0.00021737,2]
[349819184,1737450659542,-6928.03100353,0.00021743,2]
[349819185,1737450659551,-10432.0465053,0.00021748,2]
[349819186,1737450659561,-10432.0465053,0.00021748,2]
[349819187,1737450659572,-11967.97088527,0.00021751,2]
[349819188,1737450659583,-12458.95672727,0.00021751,2]
[349819189,1737450659593,-6928.03100353,0.00021753,2]
[349819190,1737450659604,-22882.09137377,0.00021754,2]
[349819191,1737450659616,-2502.4721581,0.00021755,2]
[349819192,1737450659627,-13531.01972449,0.00021755,2]
[349819193,1737450659638,-632.57741883,0.00021756,2]
[349819194,1737450659649,-5063.3945,0.00021756,30]
[349819195,1737450659659,-11967.97088527,0.00021758,2]
[349819196,1737450659669,-2502.4721581,0.00021759,2]
[349819197,1737450659678,-228.14435471,0.00021767,2]
[349819198,1737450659688,-5714.48495303,0.0002177,2]
[349819199,1737450659698,-632.57741883,0.0002177,2]
[349819200,1737450659708,-2843.60211939,0.00021772,2]
[349819201,1737450659718,-203.82937226,0.00021775,3]
[349819202,1737450659728,-2502.4721581,0.00021775,2]
[349819203,1737450659739,-165516.70229553,0.00021776,2]
[349819204,1737450659749,-5798.33959978,0.00021778,2]
[349819205,1737450659758,-537.04,0.0002178,2]
[349819206,1737450659767,-6928.03100353,0.00021782,2]
[349819207,1737450659776,-5714.48495303,0.00021782,2]
[349819208,1737450659785,-165516.70229553,0.00021784,2]
[349819209,1737450659795,-6928.03100353,0.00021785,2]
[349819210,1737450659804,-352.67354889,0.00021785,2]
[349819211,1737450659813,-632.57741883,0.00021792,2]
[349819212,1737450659823,-352.67354889,0.00021796,2]
[349819213,1737450659832,-11967.97088527,0.00021796,2]
[349819214,1737450659841,-1010.0,0.000218,7]
[349819215,1737450659850,-68781.65965263,0.000218,2]
[349819216,1737450659859,-151.0,0.000218,2]
[349819217,1737450659868,-151.0,0.000218,2]
[349819218,1737450659877,-151.0,0.000218,2]
[349819219,1737450659886,-152.919312,0.000218,2]
[349819220,1737450659894,-151.0,0.000218,2]
[349819221,1737450659903,-153.027457,0.000218,2]
[349819222,1737450659912,-151.421503,0.000218,2]
[349819223,1737450659921,-151.421503,0.000218,2]
[349819224,1737450659930,-151.0,0.000218,2]
[349819225,1737450659939,-151.40075,0.000218,2]
[349819226,1737450659947,-692.671739,0.000218,2]
[349819227,1737450659956,-692.671739,0.000218,2]
[349819228,1737450659966,-151.0,0.000218,2]
[349819229,1737450659976,-254.235838,0.000218,2]
[349819230,1737450659988,-233.788884,0.000218,2]
[349819231,1737450659998,-233.788884,0.000218,2]
[349819232,1737450660009,-151.395155,0.000218,2]
[349819233,1737450660020,-11967.97088527,0.00021807,2]
[349819234,1737450660031,-228.14435471,0.00021807,2]
[349819235,1737450660043,-2502.4721581,0.00021807,2]
[349819236,1737450660054,-5714.48495303,0.00021808,2]
[349819237,1737450660063,-210.0,0.0002182,2]
[349819238,1737450660076,-11967.97088527,0.00021821,2]
[349819239,1737450660085,-5798.33959978,0.00021822,2]
[349819240,1737450660096,-22882.09137377,0.00021823,2]
[349819241,1737450660105,-108791.83985055,0.00021823,2]
[349819242,1737450660116,-500.0,0.00021823,2]
[349819243,1737450660125,-500.0,0.00021824,2]
[349819244,1737450660135,-477.65,0.00021826,30]
[349819245,1737450660144,-2843.60211939,0.00021827,2]
[349819246,1737450660153,-5714.48495303,0.00021829,2]
[349819247,1737450660163,-2502.4721581,0.00021829,2]
[349819248,1737450660173,-228.14435471,0.0002183,2]
[349819249,1737450660182,-5798.33959978,0.0002183,2]
[349819250,1737450660192,-108791.83985055,0.00021832,2]
[349819251,1737450660202,-13531.01972449,0.00021833,2]
[349819252,1737450660211,-10432.0465053,0.00021835,2]
[349819253,1737450660220,-22882.09137377,0.00021835,2]
[349819254,1737450660230,-5714.48495303,0.00021839,2]
[349819255,1737450660241,-12458.95672727,0.0002184,2]
[349819256,1737450660251,-6928.03100353,0.00021851,2]
[349819257,1737450660260,-165516.70229553,0.00021851,2]
[349819258,1737450660270,-165516.70229553,0.00021853,2]
[349819259,1737450660280,-108791.83985055,0.00021853,2]
[349819260,1737450660290,-5798.33959978,0.00021865,2]
[349819261,1737450660300,-10432.0465053,0.00021866,2]
[349819262,1737450660309,-228.14435471,0.00021868,2]
[349819263,1737450660320,-352.67354889,0.00021869,2]
[349819264,1737450660331,-632.57741883,0.00021871,2]
[349819265,1737450660341,-22882.09137377,0.00021871,2]
[349819266,1737450660350,-2843.60211939,0.00021871,2]
[349819267,1737450660360,-10432.0465053,0.00021874,2]
[349819268,1737450660372,-2000.0,0.00021874,3]
[349819269,1737450660381,-352.67354889,0.00021874,2]
[349819270,1737450660391,-228.14435471,0.00021876,2]
[349819271,1737450660400,-12458.95672727,0.00021876,2]
[349819272,1737450660409,-13531.01972449,0.00021878,2]
[349819273,1737450660419,-3000.0,0.0002188,2]
[349819274,1737450660429,-12458.95672727,0.0002188,2]
[349819275,1737450660439,-2843.60211939,0.00021883,2]
[349819276,1737450660448,-2843.60211939,0.00021884,2]
[349819277,1737450660458,-13531.01972449,0.00021885,2]
[349819278,1737450660468,-22882.09137377,0.00021889,2]
[349819279,1737450660477,-500.0,0.0002189,2]
[349819280,1737450660488,-108791.83985055,0.00021894,2]
[349819281,1737450660498,-352.67354889,0.00021895,2]
[349819282,1737450660510,-22036.27977501,0.00021897,4]
[349819283,1737450660519,-151.0,0.00021897,2]
[349819284,1737450660529,-151.0,0.00021897,2]
[349819285,1737450660539,-151.0,0.00021897,2]
[349819286,1737450660552,-151.0,0.00021897,2]
[349819287,1737450660563,-182.506579,0.00021897,2]
[349819288,1737450660575,-182.506579,0.00021897,2]
[349819289,1737450660586,-165516.70229553,0.00021898,2]
[349819290,1737450660599,-2000.0,0.000219,2]
[349819291,1737450660609,-2000.0,0.000219,2]
[349819292,1737450660621,-2000.0,0.000219,2]
[349819293,1737450660631,-2000.0,0.000219,2]
[349819294,1737450660641,-2000.0,0.000219,2]
[349819295,1737450660651,-2000.0,0.000219,2]
[349819296,1737450660661,-188.88535454,0.000219,2]
[349819297,1737450660671,-1187.92,0.000219,31]
[349819298,1737450660680,-1187.92,0.000219,31]
[349819299,1737450660688,-1187.92,0.000219,31]
[349819300,1737450660698,-1187.92,0.000219,31]